Workbook

Sheet Feuil1
A1: REF | B1: NOMENCLATURE | E1: Pds | F1: Prix de vente | G1: Prix de loc/mois | H1: Qté | I1: Pds total | J1: Prix de V ttl | K1: Prix de loc ttl
A4: cale | B4: cale de pied jaune | E4: 0.2 | F4: 5 | G4: =F4*5% -> 0.25 | H4: 0 | I4: =E4*H4 -> 0 | J4: =F4*H4 -> 0 | K4: =G4*H4 -> 0
A5: socle reg. | B5: socle réglable 0,50m | E5: 3.47 | F5: =10.18*(1+#REF!/100) ->  | H5: 0 | I5: 0
B6: socle orientable | E6: 5 | F6: 28 | G6: 1.4 | H6: 0 | I6: 0 | J6: 0 | K6: 0
A7: embase | B7: embase | E7: 1.7 | F7: 15 | G7: 0.75 | H7: 0 | I7: 0 | J7: 0 | K7: 0
A8: poteau500 | B8: poteau 0,50m | E8: 2.9 | F8: =11*(1+#REF!/100) ->  | H8: 0 | I8: 0
A9: poteau1000 | B9: poteau 1,00m | E9: 5.12 | F9: =13.2*(1+#REF!/100) ->  | H9: 0 | I9: 0
B10: poteau 1,50m | E10: 7.34 | F10: =17.6*(1+#REF!/100) ->  | H10: 0 | I10: 0
A11: poteau2000 | B11: poteau 2,00m | E11: 9.55 | F11: =20.9*(1+#REF!/100) ->  | H11: 0 | I11: 0
B12: goupille | E12: 0.1 | H12: 0
B13: double clavette | E13: 1 | F13: 10 | G13: 0.5 | H13: 0 | I13: 0 | J13: 0 | K13: 0
A14: lisse400 | B14: lisse 0,40m | E14: 2.35 | F14: =8.8*(1+#REF!/100) ->  | H14: 0 | I14: 0 | J14: =F14*H14 ->  | K14: =G14*H14 -> 
A15: lisse700 | B15: lisse 0,70m | E15: 3.19 | F15: =9.63*(1+#REF!/100) ->  | H15: 0 | I15: 0
A16: lisse1000 | B16: lisse 1,00m | E16: 4.22 | F16: =11*(1+#REF!/100) ->  | H16: 0 | I16: 0
A17: lisse1500 | B17: lisse 1,50m | E17: 5.94 | F17: =12.1*(1+#REF!/100) ->  | H17: 0 | I17: 0
A18: lisse2000 | B18: lisse 2,00m | E18: 7.67 | F18: =14.3*(1+#REF!/100) ->  | H18: 0 | I18: 0
A19: lisse2500 | B19: lisse 2,50m | E19: 9.39 | F19: =17.6*(1+#REF!/100) ->  | H19: 0 | I19: 0
A20: lisse3000 | B20: lisse 3,00m | E20: 11.11 | F20: =19.8*(1+#REF!/100) ->  | H20: 0 | I20: 0
B21: garde-corps 0,70m | E21: 7.5 | H21: 0 | I21: 0
B22: garde-corps 1,00m | E22: 8.5 | H22: 0
B23: garde-corps 1,50m | E23: 9 | F23: 52 | H23: 0 | I23: 0
B24: garde-corps 2,00m | E24: 10 | F24: 56 | H24: 0 | I24: 0
B25: garde-corps 3,00m | E25: 15.5 | F25: 60 | H25: 0 | I25: 0
A26: lisserenf1000 | B26: lisse renforcée 1,00m | E26: 8 | F26: 65 | G26: 3.25 | H26: 0 | I26: 0 | J26: 0 | K26: 0
A27: lisserenf1500 | B27: lisse renforcée 1,50m | E27: 11.39 | F27: =47.85*(1+#REF!/100) ->  | H27: 0 | I27: 0
A28: lisserenf2000 | B28: lisse renforcée 2,00m | E28: 18.01 | F28: =53.55*(1+#REF!/100) ->  | H28: 0 | I28: 0
A29: lisserenf2500 | B29: lisse renforcée 2,50m | E29: 21.91 | F29: =57.75*(1+#REF!/100) ->  | H29: 0 | I29: 0
A30: lisserenf3000 | B30: lisse renforcée 3,00m | E30: 19.7 | F30: =66*(1+#REF!/100) ->  | H30: 0 | I30: 0
A31: cons0.40 | B31: console 0,40m | E31: 3.4 | F31: =22*(1+#REF!/100) ->  | H31: 0 | I31: 0
A32: cons0.70 | B32: console 0,70m | E32: 6 | F32: =24.75*(1+#REF!/100) ->  | H32: 0 | I32: 0
A33: diagonale700 | B33: diagonale 2,00 x 0,70m | E33: 8.6 | F33: =16.5*(1+#REF!/100) ->  | H33: 0 | I33: 0
A34: diagonale1000 | B34: diagonale 2,00 x 1,00m | E34: 9 | F34: =17.6*(1+#REF!/100) ->  | H34: 0 | I34: 0
A35: diagonale1500 | B35: diagonale 2,00 x 1,50m | E35: 9.7 | F35: =18.7*(1+#REF!/100) ->  | H35: 0 | I35: 0
A36: diagonale2000 | B36: diagonale 2,00 x 2,00m | E36: 10.8 | F36: =19.8*(1+#REF!/100) ->  | H36: 0 | I36: 0
A37: diagonale2500 | B37: diagonale 2,00 x 2,50m | E37: 12.1 | F37: =20.35*(1+#REF!/100) ->  | H37: 0 | I37: 0
A38: diagonale3000 | B38: diagonale 2,00 x 3,00m | E38: 13.5 | F38: =23.1*(1+#REF!/100) ->  | H38: 0 | I38: 0
B39: poutre acier avec piquage 4,00m | E39: 51.9 | F39: =115.5*(1+#REF!/100) ->  | H39: 0 | I39: 0
B40: poutre acier avec piquage 5,00m | E40: 63.1 | F40: =137.5*(1+#REF!/100) ->  | H40: 0 | I40: 0
B41: poutre acier avec piquage 6,00m | E41: 71.8 | F41: =159.5*(1+#REF!/100) ->  | H41: 0 | I41: 0
B42: poutre acier sans piquage 4,00m | E42: 40 | F42: 200 | G42: 10 | H42: 0 | I42: 0 | J42: 0 | K42: 0
B43: poutre acier sans piquage 5,00m | E43: 50 | F43: 250 | G43: 12.5 | H43: 0 | I43: 0 | J43: 0 | K43: 0
B44: poutre acier sans piquage 6,00m | E44: 60 | F44: 300 | G44: 15 | H44: 0 | I44: 0 | J44: 0 | K44: 0
B45: poutre aluminium 3,00m | E45: 18 | F45: 250 | G45: 12.5 | H45: 0 | I45: 0 | J45: 0 | K45: 0
B46: poutre aluminium 4,00m | E46: 24 | F46: 310 | G46: 15.5 | H46: 0 | I46: 0 | J46: 0 | K46: 0
B47: poutre aluminium 5,00m | E47: 30 | F47: 360 | G47: 18 | H47: 0 | I47: 0 | J47: 0 | K47: 0
B48: poutre aluminium 6,00m | E48: 36 | F48: 440 | G48: 22 | H48: 0 | I48: 0 | J48: 0 | K48: 0
B49: poutre aluminium 8,00m | E49: 50 | F49: 560 | G49: 28 | H49: 0 | I49: 0 | J49: 0 | K49: 0
B50: liaison poutre | E50: 2.5 | F50: 22 | G50: 1.1 | H50: 0 | I50: 0 | J50: 0 | K50: 0
B51: liaison faitière | E51: 3 | F51: 35 | G51: 1.75 | H51: 0 | I51: 0 | J51: 0 | K51: 0
A52: plateau700 | B52: plancher acier 0,30 x 0,70m | E52: 7.715 | F52: 21 | G52: 1.05 | H52: 0 | I52: 0 | J52: 0 | K52: 0
A53: plateau1000 | B53: plancher acier 0,30 x 1,00m | E53: 10.44 | F53: =22.5*(1+#REF!/100) ->  | H53: 0 | I53: 0
A54: plateau1500 | B54: plancher acier 0,30 x 1,50m | E54: 13.73 | F54: =24*(1+#REF!/100) ->  | H54: 0 | I54: 0
A55: plateau2000 | B55: plancher acier 0,30 x 2,00m | E55: 17.02 | F55: =28.5*(1+#REF!/100) ->  | H55: 0 | I55: 0
A56: plateau2500 | B56: plancher acier 0,30 x 2,50m | E56: 20.31 | F56: =33*(1+#REF!/100) ->  | H56: 0 | I56: 0
A57: plateau3000 | B57: plancher acier 0,30 x 3,00m | E57: 23.6 | F57: =36*(1+#REF!/100) ->  | H57: 0 | I57: 0
B58: plancher alu/bois 0,60 x 1,50m | E58: 12.3 | H58: 0 | I58: 0
B59: plancher alu/bois 0,60 x 2,00m | E59: 16 | H59: 0 | I59: 0
B60: plancher alu/bois 0,60 x 3,00m | E60: 18.6 | H60: 0 | I60: 0
B61: couvre plancher 0,75m | E61: 7.5 | F61: 38 | G61: 1.9 | H61: 0 | I61: 0 | J61: 0 | K61: 0
B62: couvre plancher 1,05m | E62: 6.1 | F62: 23.1 | G62: 1.155 | H62: 0 | I62: 0 | J62: 0 | K62: 0
B63: couvre plancher 1,50m | E63: 8.9 | F63: 25.5 | G63: 1.275 | H63: 0 | I63: 0 | J63: 0 | K63: 0
B64: couvre plancher 2,00m | E64: 11.2 | F64: 30.9 | G64: 1.545 | H64: 0 | I64: 0 | J64: 0 | K64: 0
B65: couvre plancher 2,50m | E65: 14.9 | F65: 33.75 | G65: 1.6875 | H65: 0 | I65: 0 | J65: 0 | K65: 0
B66: couvre plancher 3,00m | E66: 17.9 | F66: 41.25 | G66: 2.0625 | H66: 0 | I66: 0 | J66: 0 | K66: 0
B67: plancher trappe 0,60 x 1,50m | E67: 23 | F67: 165 | G67: 8.25 | H67: 0 | I67: 0 | J67: 0 | K67: 0
B68: plancher trappe 0,60 x 2,00m | E68: 25 | F68: 189.75 | G68: =F68*5% -> 9.4875 | H68: 0 | I68: 0 | J68: 0 | K68: 0
B69: plancher trappe 0,60 x 2,50m | E69: 27 | F69: 247.5 | G69: 12.375 | H69: 0 | I69: 0 | J69: 0 | K69: 0
A70: trappe3000+echelle | B70: plancher trappe 0,60 x 3,00m | E70: 29 | F70: 313.5 | G70: 15.675 | H70: 0 | I70: =E70*H70 -> 0 | J70: =F70*H70 -> 0 | K70: =G70*H70 -> 0
B71: échelle 2,00m | E71: 5 | F71: 45 | G71: 2.25 | H71: 0 | I71: 0 | J71: 0 | K71: 0
A72: plinthe700 | B72: plinthe 0,70m | E72: 2 | F72: 8.25 | G72: =F72*8% -> 0.66 | H72: 0 | I72: 0 | J72: 0 | K72: 0
A73: plinthe1000 | B73: plinthe 1,00m | E73: 3.1 | F73: 9 | G73: 0.72 | H73: 0 | I73: 0 | J73: 0 | K73: 0
A74: plinthe1500 | B74: plinthe 1,50m | E74: 4.95 | F74: 10.65 | G74: 0.852 | H74: 0 | I74: 0 | J74: 0 | K74: 0
A75: plinthe2000 | B75: plinthe 2,00m | E75: 6.2 | F75: 12.3 | G75: 0.984 | H75: 0 | I75: 0 | J75: 0 | K75: 0
A76: plinthe2500 | B76: plinthe 2,50m | E76: 7.4 | F76: 15.6 | G76: 1.248 | H76: 0 | I76: 0 | J76: 0 | K76: 0
A77: plinthe3000 | B77: plinthe 3,00m | E77: 8.6 | F77: 18.15 | G77: 1.452 | H77: 0 | I77: 0 | J77: 0 | K77: 0
B78: plinthe volige 3,00m | E78: 8.6 | F78: 18.15 | G78: =F78*8% -> 1.452 | H78: 0 | I78: =E78*H78 -> 0 | J78: =F78*H78 -> 0 | K78: =G78*H78 -> 0
B79: rack de stockage | E79: 49 | F79: 225 | G79: 11.25 | H79: 0 | I79: 0 | J79: 0 | K79: 0
B80: rack de stockage grillagé | E80: 80 | F80: 350 | G80: 17.5 | H80: 0 | I80: 0 | J80: 0 | K80: 0
A81: collier fixe | B81: raccord angle droit 49mm | E81: 1.32 | F81: 6.5 | G81: 0.325 | H81: 0 | I81: 0 | J81: 0 | K81: 0
B82: crapaud | E82: 1.5 | H82: 0 | I82: 0
B83: raccord angle variable 49mm | E83: 1.42 | F83: 8.2 | G83: 0.41 | H83: 0 | I83: 0 | J83: 0 | K83: 0
B84: cale cp pour vérin d'amarrage | E84: 0.5 | F84: 5 | G84: 0.25 | H84: 0 | I84: 0 | J84: 0 | K84: 0
B85: vérin d'amarrage | E85: 2.9 | F85: 45 | G85: 2.25 | H85: 0 | I85: 0 | J85: 0 | K85: 0
A86: goujon sur collier | B86: goujon sur collier | E86: 2.3 | F86: 34 | G86: 1.7 | H86: 0 | I86: 0 | J86: 0 | K86: 0
A87: roueB | B87: roue sur vérin 300kg | E87: 9 | F87: 90 | G87: 4.5 | H87: 0 | I87: 0 | J87: 0 | K87: 0
A88: amarrage 1.00m | B88: barre d'ancrage 1,00m | E88: 5 | F88: 14 | G88: 0.7 | H88: 0 | I88: 0 | J88: 0 | K88: 0
B89: barre d'ancrage 1,50m | E89: 6 | F89: 20 | G89: 1 | H89: =IF((phase=1),#REF!,IF(AND(phase=2),#REF!,IF(AND(phase=3),#REF!,IF(AND(phase=4),#REF!,IF(AND(phase=5),#REF!,IF(AND(phase=6),#REF!,IF(AND(phase=7),#REF!,IF(AND(phase=8),#REF!,IF(AND(phase=9),#REF!))))))))) -> 
B90: piton 120mm | E90: 0.1 | F90: 1.2 | G90: 0.06 | H90: =IF((phase=1),#REF!,IF(AND(phase=2),#REF!,IF(AND(phase=3),#REF!,IF(AND(phase=4),#REF!,IF(AND(phase=5),#REF!,IF(AND(phase=6),#REF!,IF(AND(phase=7),#REF!,IF(AND(phase=8),#REF!,IF(AND(phase=9),#REF!))))))))) -> 
B91: piton 160mm | E91: 0.15 | F91: 1.4 | G91: 0.07 | H91: =IF((phase=1),#REF!,IF(AND(phase=2),#REF!,IF(AND(phase=3),#REF!,IF(AND(phase=4),#REF!,IF(AND(phase=5),#REF!,IF(AND(phase=6),#REF!,IF(AND(phase=7),#REF!,IF(AND(phase=8),#REF!,IF(AND(phase=9),#REF!))))))))) -> 
B92: piton 300mm | E92: 0.2 | F92: 2.4 | G92: 0.12 | H92: =IF((phase=1),#REF!,IF(AND(phase=2),#REF!,IF(AND(phase=3),#REF!,IF(AND(phase=4),#REF!,IF(AND(phase=5),#REF!,IF(AND(phase=6),#REF!,IF(AND(phase=7),#REF!,IF(AND(phase=8),#REF!,IF(AND(phase=9),#REF!))))))))) -> 
B93: cheville 70 x 14mm | E93: 0.01 | F93: 0.14 | G93: 0.007 | H93: =IF((phase=1),#REF!,IF(AND(phase=2),#REF!,IF(AND(phase=3),#REF!,IF(AND(phase=4),#REF!,IF(AND(phase=5),#REF!,IF(AND(phase=6),#REF!,IF(AND(phase=7),#REF!,IF(AND(phase=8),#REF!,IF(AND(phase=9),#REF!))))))))) -> 
B94: fourreau 2,00m | E94: 8 | F94: 40 | G94: 2 | H94: =IF((phase=1),#REF!,IF(AND(phase=2),#REF!,IF(AND(phase=3),#REF!,IF(AND(phase=4),#REF!,IF(AND(phase=5),#REF!,IF(AND(phase=6),#REF!,IF(AND(phase=7),#REF!,IF(AND(phase=8),#REF!,IF(AND(phase=9),#REF!))))))))) -> 
B95: fourreau 1,00m | E95: 4 | F95: 20 | G95: 1 | H95: =IF((phase=1),#REF!,IF(AND(phase=2),#REF!,IF(AND(phase=3),#REF!,IF(AND(phase=4),#REF!,IF(AND(phase=5),#REF!,IF(AND(phase=6),#REF!,IF(AND(phase=7),#REF!,IF(AND(phase=8),#REF!,IF(AND(phase=9),#REF!))))))))) -> 
B96: contreplaqué 1,20 x 2,50m ep 18mm | E96: 12 | F96: 54 | G96: =F96*15% -> 8.1 | H96: =IF((phase=1),#REF!,IF(AND(phase=2),#REF!,IF(AND(phase=3),#REF!,IF(AND(phase=4),#REF!,IF(AND(phase=5),#REF!,IF(AND(phase=6),#REF!,IF(AND(phase=7),#REF!,IF(AND(phase=8),#REF!,IF(AND(phase=9),#REF!))))))))) -> 
B97: contreplaqué découpé ep 18mm | E97: 4 | F97: 18 | G97: =F97*15% -> 2.7 | H97: =IF((phase=1),#REF!,IF(AND(phase=2),#REF!,IF(AND(phase=3),#REF!,IF(AND(phase=4),#REF!,IF(AND(phase=5),#REF!,IF(AND(phase=6),#REF!,IF(AND(phase=7),#REF!,IF(AND(phase=8),#REF!,IF(AND(phase=9),#REF!))))))))) -> 
B98: polyfoam 2,50 x 1,20m | E98: 2 | F98: 30 | G98: =F98*20% -> 6 | H98: =IF((phase=1),#REF!,IF(AND(phase=2),#REF!,IF(AND(phase=3),#REF!,IF(AND(phase=4),#REF!,IF(AND(phase=5),#REF!,IF(AND(phase=6),#REF!,IF(AND(phase=7),#REF!,IF(AND(phase=8),#REF!,IF(AND(phase=9),#REF!))))))))) -> 
B99: polyfoam 1,25 x 1,20m | E99: 1 | F99: 15 | G99: =F99*20% -> 3 | H99: =IF((phase=1),#REF!,IF(AND(phase=2),#REF!,IF(AND(phase=3),#REF!,IF(AND(phase=4),#REF!,IF(AND(phase=5),#REF!,IF(AND(phase=6),#REF!,IF(AND(phase=7),#REF!,IF(AND(phase=8),#REF!,IF(AND(phase=9),#REF!))))))))) -> 
B100: polyfoam 2,50 x 0,60m | E100: 1 | F100: 15 | G100: =F100*20% -> 3 | H100: =IF((phase=1),#REF!,IF(AND(phase=2),#REF!,IF(AND(phase=3),#REF!,IF(AND(phase=4),#REF!,IF(AND(phase=5),#REF!,IF(AND(phase=6),#REF!,IF(AND(phase=7),#REF!,IF(AND(phase=8),#REF!,IF(AND(phase=9),#REF!))))))))) -> 
B101: planche 38 x 200mm lg 1,00m | E101: 3 | F101: 4 | G101: =F101*15% -> 0.6 | H101: =IF((phase=1),#REF!,IF(AND(phase=2),#REF!,IF(AND(phase=3),#REF!,IF(AND(phase=4),#REF!,IF(AND(phase=5),#REF!,IF(AND(phase=6),#REF!,IF(AND(phase=7),#REF!,IF(AND(phase=8),#REF!,IF(AND(phase=9),#REF!))))))))) -> 
B102: planche 38 x 200mm lg 1,50m | E102: 4.5 | F102: 6 | G102: =F102*15% -> 0.9 | H102: =IF((phase=1),#REF!,IF(AND(phase=2),#REF!,IF(AND(phase=3),#REF!,IF(AND(phase=4),#REF!,IF(AND(phase=5),#REF!,IF(AND(phase=6),#REF!,IF(AND(phase=7),#REF!,IF(AND(phase=8),#REF!,IF(AND(phase=9),#REF!))))))))) -> 
B103: planche 38 x 200mm lg 2,00m | E103: 6 | F103: 8 | G103: =F103*15% -> 1.2 | H103: =IF((phase=1),#REF!,IF(AND(phase=2),#REF!,IF(AND(phase=3),#REF!,IF(AND(phase=4),#REF!,IF(AND(phase=5),#REF!,IF(AND(phase=6),#REF!,IF(AND(phase=7),#REF!,IF(AND(phase=8),#REF!,IF(AND(phase=9),#REF!))))))))) -> 
B104: planche 38 x 200mm lg 2,50m | E104: 7.5 | H104: =IF((phase=1),#REF!,IF(AND(phase=2),#REF!,IF(AND(phase=3),#REF!,IF(AND(phase=4),#REF!,IF(AND(phase=5),#REF!,IF(AND(phase=6),#REF!,IF(AND(phase=7),#REF!,IF(AND(phase=8),#REF!,IF(AND(phase=9),#REF!))))))))) ->  | I104: =H104*E104 -> 
B105: planche 38 x 200mm lg 3,00m | E105: 9 | F105: 12 | G105: =F105*15% -> 1.8 | H105: =IF((phase=1),#REF!,IF(AND(phase=2),#REF!,IF(AND(phase=3),#REF!,IF(AND(phase=4),#REF!,IF(AND(phase=5),#REF!,IF(AND(phase=6),#REF!,IF(AND(phase=7),#REF!,IF(AND(phase=8),#REF!,IF(AND(phase=9),#REF!))))))))) -> 
B106: planche 38 x 200mm lg 4,00m | E106: 12 | F106: 16 | G106: =F106*15% -> 2.4 | H106: =IF((phase=1),#REF!,IF(AND(phase=2),#REF!,IF(AND(phase=3),#REF!,IF(AND(phase=4),#REF!,IF(AND(phase=5),#REF!,IF(AND(phase=6),#REF!,IF(AND(phase=7),#REF!,IF(AND(phase=8),#REF!,IF(AND(phase=9),#REF!))))))))) -> 
B107: tube<0,70m | E107: 2 | F107: 7 | G107: 0.35 | H107: =IF((phase=1),#REF!,IF(AND(phase=2),#REF!,IF(AND(phase=3),#REF!,IF(AND(phase=4),#REF!,IF(AND(phase=5),#REF!,IF(AND(phase=6),#REF!,IF(AND(phase=7),#REF!,IF(AND(phase=8),#REF!,IF(AND(phase=9),#REF!))))))))) -> 
B108: tube 0,70m | E108: 2.24 | F108: 7 | G108: =F108*5% -> 0.35 | H108: =IF((phase=1),#REF!,IF(AND(phase=2),#REF!,IF(AND(phase=3),#REF!,IF(AND(phase=4),#REF!,IF(AND(phase=5),#REF!,IF(AND(phase=6),#REF!,IF(AND(phase=7),#REF!,IF(AND(phase=8),#REF!,IF(AND(phase=9),#REF!))))))))) ->  | I108: =E108*H108 ->  | J108: =F108*H108 ->  | K108: =G108*H108 -> 
B109: tube 1,20m | E109: 3.84 | F109: 8.4 | G109: 0.42 | H109: =IF((phase=1),#REF!,IF(AND(phase=2),#REF!,IF(AND(phase=3),#REF!,IF(AND(phase=4),#REF!,IF(AND(phase=5),#REF!,IF(AND(phase=6),#REF!,IF(AND(phase=7),#REF!,IF(AND(phase=8),#REF!,IF(AND(phase=9),#REF!))))))))) -> 
B110: tube 1,70m | E110: 5.44 | F110: 10.5 | G110: 0.525 | H110: =IF((phase=1),#REF!,IF(AND(phase=2),#REF!,IF(AND(phase=3),#REF!,IF(AND(phase=4),#REF!,IF(AND(phase=5),#REF!,IF(AND(phase=6),#REF!,IF(AND(phase=7),#REF!,IF(AND(phase=8),#REF!,IF(AND(phase=9),#REF!))))))))) -> 
B111: tube 2,20m | E111: 7.04 | F111: 15.4 | G111: 0.77 | H111: =IF((phase=1),#REF!,IF(AND(phase=2),#REF!,IF(AND(phase=3),#REF!,IF(AND(phase=4),#REF!,IF(AND(phase=5),#REF!,IF(AND(phase=6),#REF!,IF(AND(phase=7),#REF!,IF(AND(phase=8),#REF!,IF(AND(phase=9),#REF!))))))))) -> 
B112: tube 2,70m | E112: 8.64 | F112: 18.9 | G112: 0.945 | H112: =IF((phase=1),#REF!,IF(AND(phase=2),#REF!,IF(AND(phase=3),#REF!,IF(AND(phase=4),#REF!,IF(AND(phase=5),#REF!,IF(AND(phase=6),#REF!,IF(AND(phase=7),#REF!,IF(AND(phase=8),#REF!,IF(AND(phase=9),#REF!))))))))) -> 
B113: tube 3,20m | E113: 10.24 | F113: 22.4 | G113: 1.12 | H113: =IF((phase=1),#REF!,IF(AND(phase=2),#REF!,IF(AND(phase=3),#REF!,IF(AND(phase=4),#REF!,IF(AND(phase=5),#REF!,IF(AND(phase=6),#REF!,IF(AND(phase=7),#REF!,IF(AND(phase=8),#REF!,IF(AND(phase=9),#REF!))))))))) -> 
B114: tube 4,50m | E114: 14.4 | F114: 31.5 | G114: 1.575 | H114: =IF((phase=1),#REF!,IF(AND(phase=2),#REF!,IF(AND(phase=3),#REF!,IF(AND(phase=4),#REF!,IF(AND(phase=5),#REF!,IF(AND(phase=6),#REF!,IF(AND(phase=7),#REF!,IF(AND(phase=8),#REF!,IF(AND(phase=9),#REF!))))))))) -> 
B115: tube 5,20m | E115: 16.64 | F115: 36.4 | G115: 1.82 | H115: =IF((phase=1),#REF!,IF(AND(phase=2),#REF!,IF(AND(phase=3),#REF!,IF(AND(phase=4),#REF!,IF(AND(phase=5),#REF!,IF(AND(phase=6),#REF!,IF(AND(phase=7),#REF!,IF(AND(phase=8),#REF!,IF(AND(phase=9),#REF!))))))))) -> 
B116: tube 6,40m | E116: 20.48 | F116: 44.8 | G116: 2.24 | H116: =IF((phase=1),#REF!,IF(AND(phase=2),#REF!,IF(AND(phase=3),#REF!,IF(AND(phase=4),#REF!,IF(AND(phase=5),#REF!,IF(AND(phase=6),#REF!,IF(AND(phase=7),#REF!,IF(AND(phase=8),#REF!,IF(AND(phase=9),#REF!))))))))) -> 
B117: Platine | H117: =IF((phase=1),#REF!,IF(AND(phase=2),#REF!,IF(AND(phase=3),#REF!,IF(AND(phase=4),#REF!,IF(AND(phase=5),#REF!,IF(AND(phase=6),#REF!,IF(AND(phase=7),#REF!,IF(AND(phase=8),#REF!,IF(AND(phase=9),#REF!))))))))) -> 
B118: pince à tole petite | E118: 0.5 | F118: 12 | G118: =F118*8% -> 0.96 | H118: =IF((phase=1),#REF!,IF(AND(phase=2),#REF!,IF(AND(phase=3),#REF!,IF(AND(phase=4),#REF!,IF(AND(phase=5),#REF!,IF(AND(phase=6),#REF!,IF(AND(phase=7),#REF!,IF(AND(phase=8),#REF!,IF(AND(phase=9),#REF!))))))))) -> 
B119: pince à tole grande | E119: 0.6 | F119: 15 | G119: =F119*8% -> 1.2 | H119: =IF((phase=1),#REF!,IF(AND(phase=2),#REF!,IF(AND(phase=3),#REF!,IF(AND(phase=4),#REF!,IF(AND(phase=5),#REF!,IF(AND(phase=6),#REF!,IF(AND(phase=7),#REF!,IF(AND(phase=8),#REF!,IF(AND(phase=9),#REF!))))))))) -> 
B120: tôle 0,90 x 2,00m | E120: 8 | F120: 25.5 | G120: =F120*8% -> 2.04 | H120: =IF((phase=1),#REF!,IF(AND(phase=2),#REF!,IF(AND(phase=3),#REF!,IF(AND(phase=4),#REF!,IF(AND(phase=5),#REF!,IF(AND(phase=6),#REF!,IF(AND(phase=7),#REF!,IF(AND(phase=8),#REF!,IF(AND(phase=9),#REF!))))))))) -> 
B121: tôle 0,90 x 2,10m | E121: 8.5 | F121: 27 | G121: =F121*8% -> 2.16 | H121: =IF((phase=1),#REF!,IF(AND(phase=2),#REF!,IF(AND(phase=3),#REF!,IF(AND(phase=4),#REF!,IF(AND(phase=5),#REF!,IF(AND(phase=6),#REF!,IF(AND(phase=7),#REF!,IF(AND(phase=8),#REF!,IF(AND(phase=9),#REF!))))))))) -> 
B122: bâche 170gr/m² 3,00m le ml | E122: 0.165 | F122: 3.5 | G122: =F122 -> 3.5 | H122: =IF((phase=1),#REF!,IF(AND(phase=2),#REF!,IF(AND(phase=3),#REF!,IF(AND(phase=4),#REF!,IF(AND(phase=5),#REF!,IF(AND(phase=6),#REF!,IF(AND(phase=7),#REF!,IF(AND(phase=8),#REF!,IF(AND(phase=9),#REF!))))))))) -> 
B123: bâche 170gr/m² 2.50m le ml | E123: 0.165 | F123: 3.5 | G123: =F123 -> 3.5 | H123: =IF((phase=1),#REF!,IF(AND(phase=2),#REF!,IF(AND(phase=3),#REF!,IF(AND(phase=4),#REF!,IF(AND(phase=5),#REF!,IF(AND(phase=6),#REF!,IF(AND(phase=7),#REF!,IF(AND(phase=8),#REF!,IF(AND(phase=9),#REF!))))))))) ->  | I123: =E123*H123 ->  | J123: =F123*H123 ->  | K123: =G123*H123 -> 
B124: colson les 100 | E124: 0.1 | F124: 6 | G124: =F124 -> 6 | H124: =IF((phase=1),#REF!,IF(AND(phase=2),#REF!,IF(AND(phase=3),#REF!,IF(AND(phase=4),#REF!,IF(AND(phase=5),#REF!,IF(AND(phase=6),#REF!,IF(AND(phase=7),#REF!,IF(AND(phase=8),#REF!,IF(AND(phase=9),#REF!))))))))) -> 
B125: limon avec palier 0,90 x 3,00m | E125: 25 | F125: 500 | G125: =F125*8% -> 40 | H125: =IF((phase=1),#REF!,IF(AND(phase=2),#REF!,IF(AND(phase=3),#REF!,IF(AND(phase=4),#REF!,IF(AND(phase=5),#REF!,IF(AND(phase=6),#REF!,IF(AND(phase=7),#REF!,IF(AND(phase=8),#REF!,IF(AND(phase=9),#REF!))))))))) -> 
B126: garde corps de limon | E126: 7 | F126: 100 | G126: 8 | H126: =IF((phase=1),#REF!,IF(AND(phase=2),#REF!,IF(AND(phase=3),#REF!,IF(AND(phase=4),#REF!,IF(AND(phase=5),#REF!,IF(AND(phase=6),#REF!,IF(AND(phase=7),#REF!,IF(AND(phase=8),#REF!,IF(AND(phase=9),#REF!))))))))) -> 
B127: garde corps de palier | E127: 2.5 | F127: 60 | G127: 4.8 | H127: =IF((phase=1),#REF!,IF(AND(phase=2),#REF!,IF(AND(phase=3),#REF!,IF(AND(phase=4),#REF!,IF(AND(phase=5),#REF!,IF(AND(phase=6),#REF!,IF(AND(phase=7),#REF!,IF(AND(phase=8),#REF!,IF(AND(phase=9),#REF!))))))))) -> 
B128: limon droit 0,90 x 2,50m | E128: 20 | F128: 350 | G128: 28 | H128: =IF((phase=1),#REF!,IF(AND(phase=2),#REF!,IF(AND(phase=3),#REF!,IF(AND(phase=4),#REF!,IF(AND(phase=5),#REF!,IF(AND(phase=6),#REF!,IF(AND(phase=7),#REF!,IF(AND(phase=8),#REF!,IF(AND(phase=9),#REF!))))))))) -> 
B129: limon droit 0,90 x 1,50m | E129: 15 | F129: 230 | G129: 18.4 | H129: =IF((phase=1),#REF!,IF(AND(phase=2),#REF!,IF(AND(phase=3),#REF!,IF(AND(phase=4),#REF!,IF(AND(phase=5),#REF!,IF(AND(phase=6),#REF!,IF(AND(phase=7),#REF!,IF(AND(phase=8),#REF!,IF(AND(phase=9),#REF!))))))))) -> 
B130: limon droit 0,90 x 1,00m | E130: 10 | F130: 150 | G130: 12 | H130: =IF((phase=1),#REF!,IF(AND(phase=2),#REF!,IF(AND(phase=3),#REF!,IF(AND(phase=4),#REF!,IF(AND(phase=5),#REF!,IF(AND(phase=6),#REF!,IF(AND(phase=7),#REF!,IF(AND(phase=8),#REF!,IF(AND(phase=9),#REF!))))))))) -> 
B131: étais SN80 - 0,55/0,80m | E131: 5 | F131: 20 | G131: 1.6 | H131: =IF((phase=1),#REF!,IF(AND(phase=2),#REF!,IF(AND(phase=3),#REF!,IF(AND(phase=4),#REF!,IF(AND(phase=5),#REF!,IF(AND(phase=6),#REF!,IF(AND(phase=7),#REF!,IF(AND(phase=8),#REF!,IF(AND(phase=9),#REF!))))))))) -> 
B132: étais SN120 - 0,75/1,20m | E132: 6 | F132: 24 | G132: 1.92 | H132: =IF((phase=1),#REF!,IF(AND(phase=2),#REF!,IF(AND(phase=3),#REF!,IF(AND(phase=4),#REF!,IF(AND(phase=5),#REF!,IF(AND(phase=6),#REF!,IF(AND(phase=7),#REF!,IF(AND(phase=8),#REF!,IF(AND(phase=9),#REF!))))))))) -> 
B133: étais SN175 - 1,00/1,75m | E133: 7.2 | F133: 35 | G133: =F133*8% -> 2.8 | H133: =IF((phase=1),#REF!,IF(AND(phase=2),#REF!,IF(AND(phase=3),#REF!,IF(AND(phase=4),#REF!,IF(AND(phase=5),#REF!,IF(AND(phase=6),#REF!,IF(AND(phase=7),#REF!,IF(AND(phase=8),#REF!,IF(AND(phase=9),#REF!))))))))) -> 
B134: étais SE300 - 1,70/3,00m | E134: 16 | F134: 41.2 | G134: =F134*8% -> 3.296 | H134: =IF((phase=1),#REF!,IF(AND(phase=2),#REF!,IF(AND(phase=3),#REF!,IF(AND(phase=4),#REF!,IF(AND(phase=5),#REF!,IF(AND(phase=6),#REF!,IF(AND(phase=7),#REF!,IF(AND(phase=8),#REF!,IF(AND(phase=9),#REF!))))))))) -> 
B135: étais SE400 - 2,20/4,00m | E135: 17.5 | F135: 50 | G135: 4 | H135: =IF((phase=1),#REF!,IF(AND(phase=2),#REF!,IF(AND(phase=3),#REF!,IF(AND(phase=4),#REF!,IF(AND(phase=5),#REF!,IF(AND(phase=6),#REF!,IF(AND(phase=7),#REF!,IF(AND(phase=8),#REF!,IF(AND(phase=9),#REF!))))))))) -> 
B136: sécurétai - 1,50/1,50m | E136: 12 | F136: 156 | G136: 12.48 | H136: =IF((phase=1),#REF!,IF(AND(phase=2),#REF!,IF(AND(phase=3),#REF!,IF(AND(phase=4),#REF!,IF(AND(phase=5),#REF!,IF(AND(phase=6),#REF!,IF(AND(phase=7),#REF!,IF(AND(phase=8),#REF!,IF(AND(phase=9),#REF!))))))))) -> 
B137: échelle ASE 0,70m | E137: 10.6 | F137: 44.56 | G137: 3.5648 | H137: =IF((phase=1),#REF!,IF(AND(phase=2),#REF!,IF(AND(phase=3),#REF!,IF(AND(phase=4),#REF!,IF(AND(phase=5),#REF!,IF(AND(phase=6),#REF!,IF(AND(phase=7),#REF!,IF(AND(phase=8),#REF!,IF(AND(phase=9),#REF!))))))))) -> 
B138: échelle ASE 1,40m | E138: 19.9 | F138: 70.42 | G138: 5.6336 | H138: =IF((phase=1),#REF!,IF(AND(phase=2),#REF!,IF(AND(phase=3),#REF!,IF(AND(phase=4),#REF!,IF(AND(phase=5),#REF!,IF(AND(phase=6),#REF!,IF(AND(phase=7),#REF!,IF(AND(phase=8),#REF!,IF(AND(phase=9),#REF!))))))))) -> 
B139: garde corps ASE 1,80m | E139: 11.8 | F139: 40.52 | G139: 3.2416 | H139: =IF((phase=1),#REF!,IF(AND(phase=2),#REF!,IF(AND(phase=3),#REF!,IF(AND(phase=4),#REF!,IF(AND(phase=5),#REF!,IF(AND(phase=6),#REF!,IF(AND(phase=7),#REF!,IF(AND(phase=8),#REF!,IF(AND(phase=9),#REF!))))))))) -> 
B140: croisillon ASE 0,70m | E140: 4.25 | F140: 15.08 | G140: 1.2064 | H140: =IF((phase=1),#REF!,IF(AND(phase=2),#REF!,IF(AND(phase=3),#REF!,IF(AND(phase=4),#REF!,IF(AND(phase=5),#REF!,IF(AND(phase=6),#REF!,IF(AND(phase=7),#REF!,IF(AND(phase=8),#REF!,IF(AND(phase=9),#REF!))))))))) -> 
B141: vérin de pied ASE | E141: 6.2 | F141: 31.2 | G141: 2.496 | H141: =IF((phase=1),#REF!,IF(AND(phase=2),#REF!,IF(AND(phase=3),#REF!,IF(AND(phase=4),#REF!,IF(AND(phase=5),#REF!,IF(AND(phase=6),#REF!,IF(AND(phase=7),#REF!,IF(AND(phase=8),#REF!,IF(AND(phase=9),#REF!))))))))) -> 
B142: vérin de tête ASE | E142: 6 | F142: 28.6 | G142: 2.288 | H142: =IF((phase=1),#REF!,IF(AND(phase=2),#REF!,IF(AND(phase=3),#REF!,IF(AND(phase=4),#REF!,IF(AND(phase=5),#REF!,IF(AND(phase=6),#REF!,IF(AND(phase=7),#REF!,IF(AND(phase=8),#REF!,IF(AND(phase=9),#REF!))))))))) -> 
B143: plancher trappe ASE 0,60 x 1,80m | E143: 20.6 | F143: 320 | G143: 25.6 | H143: =IF((phase=1),#REF!,IF(AND(phase=2),#REF!,IF(AND(phase=3),#REF!,IF(AND(phase=4),#REF!,IF(AND(phase=5),#REF!,IF(AND(phase=6),#REF!,IF(AND(phase=7),#REF!,IF(AND(phase=8),#REF!,IF(AND(phase=9),#REF!))))))))) -> 
B144: plancher acier ASE 0,30 x 1,80m | E144: 14.8 | F144: 54 | G144: 4.32 | H144: =IF((phase=1),#REF!,IF(AND(phase=2),#REF!,IF(AND(phase=3),#REF!,IF(AND(phase=4),#REF!,IF(AND(phase=5),#REF!,IF(AND(phase=6),#REF!,IF(AND(phase=7),#REF!,IF(AND(phase=8),#REF!,IF(AND(phase=9),#REF!))))))))) ->  | I144: =E144*H144 ->  | J144: =F144*H144 ->  | K144: =G144*H144 -> 
B145: fourche double entrée | E145: 2.5 | F145: 9.54 | G145: =F145*8% -> 0.7632 | H145: =IF((phase=1),#REF!,IF(AND(phase=2),#REF!,IF(AND(phase=3),#REF!,IF(AND(phase=4),#REF!,IF(AND(phase=5),#REF!,IF(AND(phase=6),#REF!,IF(AND(phase=7),#REF!,IF(AND(phase=8),#REF!,IF(AND(phase=9),#REF!))))))))) -> 
B146: fourche réglable | E146: 6 | F146: 80 | G146: 6.4 | H146: =IF((phase=1),#REF!,IF(AND(phase=2),#REF!,IF(AND(phase=3),#REF!,IF(AND(phase=4),#REF!,IF(AND(phase=5),#REF!,IF(AND(phase=6),#REF!,IF(AND(phase=7),#REF!,IF(AND(phase=8),#REF!,IF(AND(phase=9),#REF!))))))))) -> 
B147: trapéze T28.100P | E147: 7.8 | F147: 65.36 | G147: 5.2288 | H147: =IF((phase=1),#REF!,IF(AND(phase=2),#REF!,IF(AND(phase=3),#REF!,IF(AND(phase=4),#REF!,IF(AND(phase=5),#REF!,IF(AND(phase=6),#REF!,IF(AND(phase=7),#REF!,IF(AND(phase=8),#REF!,IF(AND(phase=9),#REF!))))))))) -> 
B148: trapéze T28.100G | E148: 9.05 | F148: 70.8 | G148: 5.664 | H148: =IF((phase=1),#REF!,IF(AND(phase=2),#REF!,IF(AND(phase=3),#REF!,IF(AND(phase=4),#REF!,IF(AND(phase=5),#REF!,IF(AND(phase=6),#REF!,IF(AND(phase=7),#REF!,IF(AND(phase=8),#REF!,IF(AND(phase=9),#REF!))))))))) -> 
B149: trapéze T28.150P | E149: 9.5 | F149: 72.6 | G149: 5.808 | H149: =IF((phase=1),#REF!,IF(AND(phase=2),#REF!,IF(AND(phase=3),#REF!,IF(AND(phase=4),#REF!,IF(AND(phase=5),#REF!,IF(AND(phase=6),#REF!,IF(AND(phase=7),#REF!,IF(AND(phase=8),#REF!,IF(AND(phase=9),#REF!))))))))) -> 
B150: trapéze T28.150G | E150: 11.15 | F150: 74.88 | G150: 5.9904 | H150: =IF((phase=1),#REF!,IF(AND(phase=2),#REF!,IF(AND(phase=3),#REF!,IF(AND(phase=4),#REF!,IF(AND(phase=5),#REF!,IF(AND(phase=6),#REF!,IF(AND(phase=7),#REF!,IF(AND(phase=8),#REF!,IF(AND(phase=9),#REF!))))))))) -> 
B151: raccord d'extrémité T28 RE.100 | E151: 3.13 | F151: 38.48 | G151: 3.0784 | H151: =IF((phase=1),#REF!,IF(AND(phase=2),#REF!,IF(AND(phase=3),#REF!,IF(AND(phase=4),#REF!,IF(AND(phase=5),#REF!,IF(AND(phase=6),#REF!,IF(AND(phase=7),#REF!,IF(AND(phase=8),#REF!,IF(AND(phase=9),#REF!))))))))) -> 
B152: raccord d'extrémité T28 RE.150 | E152: 4.3 | F152: 42.7 | G152: 3.416 | H152: =IF((phase=1),#REF!,IF(AND(phase=2),#REF!,IF(AND(phase=3),#REF!,IF(AND(phase=4),#REF!,IF(AND(phase=5),#REF!,IF(AND(phase=6),#REF!,IF(AND(phase=7),#REF!,IF(AND(phase=8),#REF!,IF(AND(phase=9),#REF!))))))))) -> 
B153: diagonale horizontale T28 DH.100 x 100 | E153: 3.5 | F153: 36.86 | G153: 2.9488 | H153: =IF((phase=1),#REF!,IF(AND(phase=2),#REF!,IF(AND(phase=3),#REF!,IF(AND(phase=4),#REF!,IF(AND(phase=5),#REF!,IF(AND(phase=6),#REF!,IF(AND(phase=7),#REF!,IF(AND(phase=8),#REF!,IF(AND(phase=9),#REF!))))))))) -> 
B154: diagonale horizontale T28 DH.100 x 150 | E154: 4.35 | F154: 43.78 | G154: 3.5024 | H154: =IF((phase=1),#REF!,IF(AND(phase=2),#REF!,IF(AND(phase=3),#REF!,IF(AND(phase=4),#REF!,IF(AND(phase=5),#REF!,IF(AND(phase=6),#REF!,IF(AND(phase=7),#REF!,IF(AND(phase=8),#REF!,IF(AND(phase=9),#REF!))))))))) -> 
B155: diagonale horizontale T28 DH.150 x 150 | E155: 5.01 | F155: 39.72 | G155: 3.1776 | H155: =IF((phase=1),#REF!,IF(AND(phase=2),#REF!,IF(AND(phase=3),#REF!,IF(AND(phase=4),#REF!,IF(AND(phase=5),#REF!,IF(AND(phase=6),#REF!,IF(AND(phase=7),#REF!,IF(AND(phase=8),#REF!,IF(AND(phase=9),#REF!))))))))) -> 
B156: socle réglable T28 SR. Ø34 | E156: 6.8 | F156: 62.52 | G156: 5.0016 | H156: =IF((phase=1),#REF!,IF(AND(phase=2),#REF!,IF(AND(phase=3),#REF!,IF(AND(phase=4),#REF!,IF(AND(phase=5),#REF!,IF(AND(phase=6),#REF!,IF(AND(phase=7),#REF!,IF(AND(phase=8),#REF!,IF(AND(phase=9),#REF!))))))))) -> 
B157: fourche réglable T28 FR. Ø34 2M | E157: 9.2 | F157: 62.52 | G157: 5.0016 | H157: =IF((phase=1),#REF!,IF(AND(phase=2),#REF!,IF(AND(phase=3),#REF!,IF(AND(phase=4),#REF!,IF(AND(phase=5),#REF!,IF(AND(phase=6),#REF!,IF(AND(phase=7),#REF!,IF(AND(phase=8),#REF!,IF(AND(phase=9),#REF!))))))))) -> 
B158: fourche réglable T28 FR. Ø34 3M | E158: 10.5 | G158: 0 | H158: =IF((phase=1),#REF!,IF(AND(phase=2),#REF!,IF(AND(phase=3),#REF!,IF(AND(phase=4),#REF!,IF(AND(phase=5),#REF!,IF(AND(phase=6),#REF!,IF(AND(phase=7),#REF!,IF(AND(phase=8),#REF!,IF(AND(phase=9),#REF!))))))))) -> 
B159: trapéze T40.60P | E159: 8.4 | F159: 59.88 | G159: 4.7904 | H159: =IF((phase=1),#REF!,IF(AND(phase=2),#REF!,IF(AND(phase=3),#REF!,IF(AND(phase=4),#REF!,IF(AND(phase=5),#REF!,IF(AND(phase=6),#REF!,IF(AND(phase=7),#REF!,IF(AND(phase=8),#REF!,IF(AND(phase=9),#REF!))))))))) -> 
B160: trapéze T40.60G | E160: 10.3 | F160: 67.18 | G160: 5.3744 | H160: =IF((phase=1),#REF!,IF(AND(phase=2),#REF!,IF(AND(phase=3),#REF!,IF(AND(phase=4),#REF!,IF(AND(phase=5),#REF!,IF(AND(phase=6),#REF!,IF(AND(phase=7),#REF!,IF(AND(phase=8),#REF!,IF(AND(phase=9),#REF!))))))))) -> 
B161: trapéze T40.100P | E161: 9.7 | F161: 63.88 | G161: 5.1104 | H161: =IF((phase=1),#REF!,IF(AND(phase=2),#REF!,IF(AND(phase=3),#REF!,IF(AND(phase=4),#REF!,IF(AND(phase=5),#REF!,IF(AND(phase=6),#REF!,IF(AND(phase=7),#REF!,IF(AND(phase=8),#REF!,IF(AND(phase=9),#REF!))))))))) -> 
B162: trapéze T40.100G | E162: 13.4 | F162: 71.18 | G162: 5.6944 | H162: =IF((phase=1),#REF!,IF(AND(phase=2),#REF!,IF(AND(phase=3),#REF!,IF(AND(phase=4),#REF!,IF(AND(phase=5),#REF!,IF(AND(phase=6),#REF!,IF(AND(phase=7),#REF!,IF(AND(phase=8),#REF!,IF(AND(phase=9),#REF!))))))))) -> 
B163: raccord d'extrémité T40 RE.60 | E163: 3.05 | F163: 28 | G163: 2.24 | H163: =IF((phase=1),#REF!,IF(AND(phase=2),#REF!,IF(AND(phase=3),#REF!,IF(AND(phase=4),#REF!,IF(AND(phase=5),#REF!,IF(AND(phase=6),#REF!,IF(AND(phase=7),#REF!,IF(AND(phase=8),#REF!,IF(AND(phase=9),#REF!))))))))) -> 
B164: raccord d'extrémité T40 RE.100 | E164: 3.9 | F164: 35.5 | G164: 2.84 | H164: =IF((phase=1),#REF!,IF(AND(phase=2),#REF!,IF(AND(phase=3),#REF!,IF(AND(phase=4),#REF!,IF(AND(phase=5),#REF!,IF(AND(phase=6),#REF!,IF(AND(phase=7),#REF!,IF(AND(phase=8),#REF!,IF(AND(phase=9),#REF!))))))))) -> 
B165: diagonale horizontale T40 DH.60 x 60 | E165: 3 | G165: 0 | H165: =IF((phase=1),#REF!,IF(AND(phase=2),#REF!,IF(AND(phase=3),#REF!,IF(AND(phase=4),#REF!,IF(AND(phase=5),#REF!,IF(AND(phase=6),#REF!,IF(AND(phase=7),#REF!,IF(AND(phase=8),#REF!,IF(AND(phase=9),#REF!))))))))) -> 
B166: diagonale horizontale T40 DH.60 x 100 | E166: 3.1 | F166: 30.68 | G166: 2.4544 | H166: =IF((phase=1),#REF!,IF(AND(phase=2),#REF!,IF(AND(phase=3),#REF!,IF(AND(phase=4),#REF!,IF(AND(phase=5),#REF!,IF(AND(phase=6),#REF!,IF(AND(phase=7),#REF!,IF(AND(phase=8),#REF!,IF(AND(phase=9),#REF!))))))))) -> 
B167: diagonale horizontale T40 DH.100 x 100 | E167: 3.75 | F167: 36.54 | G167: 2.9232 | H167: =IF((phase=1),#REF!,IF(AND(phase=2),#REF!,IF(AND(phase=3),#REF!,IF(AND(phase=4),#REF!,IF(AND(phase=5),#REF!,IF(AND(phase=6),#REF!,IF(AND(phase=7),#REF!,IF(AND(phase=8),#REF!,IF(AND(phase=9),#REF!))))))))) -> 
B168: socle réglable T40 SR. Ø42 | E168: 9.45 | F168: 86 | G168: 6.88 | H168: =IF((phase=1),#REF!,IF(AND(phase=2),#REF!,IF(AND(phase=3),#REF!,IF(AND(phase=4),#REF!,IF(AND(phase=5),#REF!,IF(AND(phase=6),#REF!,IF(AND(phase=7),#REF!,IF(AND(phase=8),#REF!,IF(AND(phase=9),#REF!))))))))) -> 
B169: fourche réglable T40 FR. Ø40 3M | E169: 14.2 | F169: 79 | G169: 6.32 | H169: =IF((phase=1),#REF!,IF(AND(phase=2),#REF!,IF(AND(phase=3),#REF!,IF(AND(phase=4),#REF!,IF(AND(phase=5),#REF!,IF(AND(phase=6),#REF!,IF(AND(phase=7),#REF!,IF(AND(phase=8),#REF!,IF(AND(phase=9),#REF!))))))))) -> 
B170: poutrelle H20 lg 1,00m | E170: 5 | F170: 8 | G170: =F170*15% -> 1.2 | H170: =IF((phase=1),#REF!,IF(AND(phase=2),#REF!,IF(AND(phase=3),#REF!,IF(AND(phase=4),#REF!,IF(AND(phase=5),#REF!,IF(AND(phase=6),#REF!,IF(AND(phase=7),#REF!,IF(AND(phase=8),#REF!,IF(AND(phase=9),#REF!))))))))) -> 
B171: poutrelle H20 lg 2,45m | E171: 12.25 | F171: 19.6 | G171: =F171*15% -> 2.94 | H171: =IF((phase=1),#REF!,IF(AND(phase=2),#REF!,IF(AND(phase=3),#REF!,IF(AND(phase=4),#REF!,IF(AND(phase=5),#REF!,IF(AND(phase=6),#REF!,IF(AND(phase=7),#REF!,IF(AND(phase=8),#REF!,IF(AND(phase=9),#REF!))))))))) -> 
B172: poutrelle H20 lg 2,90m | E172: 14.5 | F172: 23.2 | G172: =F172*15% -> 3.48 | H172: =IF((phase=1),#REF!,IF(AND(phase=2),#REF!,IF(AND(phase=3),#REF!,IF(AND(phase=4),#REF!,IF(AND(phase=5),#REF!,IF(AND(phase=6),#REF!,IF(AND(phase=7),#REF!,IF(AND(phase=8),#REF!,IF(AND(phase=9),#REF!))))))))) -> 
B173: poutrelle H20 lg 3,30m | E173: 16.5 | F173: 26.4 | G173: =F173*15% -> 3.96 | H173: =IF((phase=1),#REF!,IF(AND(phase=2),#REF!,IF(AND(phase=3),#REF!,IF(AND(phase=4),#REF!,IF(AND(phase=5),#REF!,IF(AND(phase=6),#REF!,IF(AND(phase=7),#REF!,IF(AND(phase=8),#REF!,IF(AND(phase=9),#REF!))))))))) -> 
B174: poutrelle H20 lg 3,90m | E174: 19.5 | F174: 31.2 | G174: =F174*15% -> 4.68 | H174: =IF((phase=1),#REF!,IF(AND(phase=2),#REF!,IF(AND(phase=3),#REF!,IF(AND(phase=4),#REF!,IF(AND(phase=5),#REF!,IF(AND(phase=6),#REF!,IF(AND(phase=7),#REF!,IF(AND(phase=8),#REF!,IF(AND(phase=9),#REF!))))))))) -> 
B175: tube GC diam.40 lg 1.00m | F175: 2.5 | G175: 0.2 | H175: =IF((phase=1),#REF!,IF(AND(phase=2),#REF!,IF(AND(phase=3),#REF!,IF(AND(phase=4),#REF!,IF(AND(phase=5),#REF!,IF(AND(phase=6),#REF!,IF(AND(phase=7),#REF!,IF(AND(phase=8),#REF!,IF(AND(phase=9),#REF!))))))))) -> 
B176: Poutrelle AL200 3,60 | E176: 23.76 | G176: 0 | H176: =IF((phase=1),#REF!,IF(AND(phase=2),#REF!,IF(AND(phase=3),#REF!,IF(AND(phase=4),#REF!,IF(AND(phase=5),#REF!,IF(AND(phase=6),#REF!,IF(AND(phase=7),#REF!,IF(AND(phase=8),#REF!,IF(AND(phase=9),#REF!))))))))) -> 
B177: tête d'étai | E177: 4.6 | G177: 0 | H177: =IF((phase=1),#REF!,IF(AND(phase=2),#REF!,IF(AND(phase=3),#REF!,IF(AND(phase=4),#REF!,IF(AND(phase=5),#REF!,IF(AND(phase=6),#REF!,IF(AND(phase=7),#REF!,IF(AND(phase=8),#REF!,IF(AND(phase=9),#REF!))))))))) -> 
B178: poutrelle primaire 200 | E178: 14.5 | G178: 0 | H178: =IF((phase=1),#REF!,IF(AND(phase=2),#REF!,IF(AND(phase=3),#REF!,IF(AND(phase=4),#REF!,IF(AND(phase=5),#REF!,IF(AND(phase=6),#REF!,IF(AND(phase=7),#REF!,IF(AND(phase=8),#REF!,IF(AND(phase=9),#REF!))))))))) -> 
B179: poutrelle primaire 170 | E179: 13.2 | G179: 0 | H179: =IF((phase=1),#REF!,IF(AND(phase=2),#REF!,IF(AND(phase=3),#REF!,IF(AND(phase=4),#REF!,IF(AND(phase=5),#REF!,IF(AND(phase=6),#REF!,IF(AND(phase=7),#REF!,IF(AND(phase=8),#REF!,IF(AND(phase=9),#REF!))))))))) -> 
B180: poutrelle primaire 150 | E180: 11.6 | G180: 0 | H180: =IF((phase=1),#REF!,IF(AND(phase=2),#REF!,IF(AND(phase=3),#REF!,IF(AND(phase=4),#REF!,IF(AND(phase=5),#REF!,IF(AND(phase=6),#REF!,IF(AND(phase=7),#REF!,IF(AND(phase=8),#REF!,IF(AND(phase=9),#REF!))))))))) -> 
B181: poutrelle primaire 115 | E181: 8.8 | G181: 0 | H181: =IF((phase=1),#REF!,IF(AND(phase=2),#REF!,IF(AND(phase=3),#REF!,IF(AND(phase=4),#REF!,IF(AND(phase=5),#REF!,IF(AND(phase=6),#REF!,IF(AND(phase=7),#REF!,IF(AND(phase=8),#REF!,IF(AND(phase=9),#REF!))))))))) -> 
B182: poutrelle primaire 90 | E182: 7 | G182: 0 | H182: =IF((phase=1),#REF!,IF(AND(phase=2),#REF!,IF(AND(phase=3),#REF!,IF(AND(phase=4),#REF!,IF(AND(phase=5),#REF!,IF(AND(phase=6),#REF!,IF(AND(phase=7),#REF!,IF(AND(phase=8),#REF!,IF(AND(phase=9),#REF!))))))))) -> 
B183: poutrelle secondaire 170 | E183: 6.1 | G183: 0 | H183: =IF((phase=1),#REF!,IF(AND(phase=2),#REF!,IF(AND(phase=3),#REF!,IF(AND(phase=4),#REF!,IF(AND(phase=5),#REF!,IF(AND(phase=6),#REF!,IF(AND(phase=7),#REF!,IF(AND(phase=8),#REF!,IF(AND(phase=9),#REF!))))))))) -> 
B184: poutrelle secondaire 150 | E184: 5.4 | G184: 0 | H184: =IF((phase=1),#REF!,IF(AND(phase=2),#REF!,IF(AND(phase=3),#REF!,IF(AND(phase=4),#REF!,IF(AND(phase=5),#REF!,IF(AND(phase=6),#REF!,IF(AND(phase=7),#REF!,IF(AND(phase=8),#REF!,IF(AND(phase=9),#REF!))))))))) -> 
B185: poutrelle secondaire 115 | E185: 4.2 | G185: 0 | H185: =IF((phase=1),#REF!,IF(AND(phase=2),#REF!,IF(AND(phase=3),#REF!,IF(AND(phase=4),#REF!,IF(AND(phase=5),#REF!,IF(AND(phase=6),#REF!,IF(AND(phase=7),#REF!,IF(AND(phase=8),#REF!,IF(AND(phase=9),#REF!))))))))) -> 
B186: trépied | G186: 0 | H186: =IF((phase=1),#REF!,IF(AND(phase=2),#REF!,IF(AND(phase=3),#REF!,IF(AND(phase=4),#REF!,IF(AND(phase=5),#REF!,IF(AND(phase=6),#REF!,IF(AND(phase=7),#REF!,IF(AND(phase=8),#REF!,IF(AND(phase=9),#REF!))))))))) -> 
G187: 0 | H187: =IF((phase=1),#REF!,IF(AND(phase=2),#REF!,IF(AND(phase=3),#REF!,IF(AND(phase=4),#REF!,IF(AND(phase=5),#REF!,IF(AND(phase=6),#REF!,IF(AND(phase=7),#REF!,IF(AND(phase=8),#REF!,IF(AND(phase=9),#REF!))))))))) -> 
G188: 0 | H188: =IF((phase=1),#REF!,IF(AND(phase=2),#REF!,IF(AND(phase=3),#REF!,IF(AND(phase=4),#REF!,IF(AND(phase=5),#REF!,IF(AND(phase=6),#REF!,IF(AND(phase=7),#REF!,IF(AND(phase=8),#REF!,IF(AND(phase=9),#REF!))))))))) -> 
G189: 0 | H189: =IF((phase=1),#REF!,IF(AND(phase=2),#REF!,IF(AND(phase=3),#REF!,IF(AND(phase=4),#REF!,IF(AND(phase=5),#REF!,IF(AND(phase=6),#REF!,IF(AND(phase=7),#REF!,IF(AND(phase=8),#REF!,IF(AND(phase=9),#REF!))))))))) -> 
G190: 0 | H190: =IF((phase=1),#REF!,IF(AND(phase=2),#REF!,IF(AND(phase=3),#REF!,IF(AND(phase=4),#REF!,IF(AND(phase=5),#REF!,IF(AND(phase=6),#REF!,IF(AND(phase=7),#REF!,IF(AND(phase=8),#REF!,IF(AND(phase=9),#REF!))))))))) -> 
G191: 0 | H191: =IF((phase=1),#REF!,IF(AND(phase=2),#REF!,IF(AND(phase=3),#REF!,IF(AND(phase=4),#REF!,IF(AND(phase=5),#REF!,IF(AND(phase=6),#REF!,IF(AND(phase=7),#REF!,IF(AND(phase=8),#REF!,IF(AND(phase=9),#REF!))))))))) -> 
G192: 0 | H192: =IF((phase=1),#REF!,IF(AND(phase=2),#REF!,IF(AND(phase=3),#REF!,IF(AND(phase=4),#REF!,IF(AND(phase=5),#REF!,IF(AND(phase=6),#REF!,IF(AND(phase=7),#REF!,IF(AND(phase=8),#REF!,IF(AND(phase=9),#REF!))))))))) -> 
G193: 0 | H193: =IF((phase=1),#REF!,IF(AND(phase=2),#REF!,IF(AND(phase=3),#REF!,IF(AND(phase=4),#REF!,IF(AND(phase=5),#REF!,IF(AND(phase=6),#REF!,IF(AND(phase=7),#REF!,IF(AND(phase=8),#REF!,IF(AND(phase=9),#REF!))))))))) -> 
G194: 0 | H194: =IF((phase=1),#REF!,IF(AND(phase=2),#REF!,IF(AND(phase=3),#REF!,IF(AND(phase=4),#REF!,IF(AND(phase=5),#REF!,IF(AND(phase=6),#REF!,IF(AND(phase=7),#REF!,IF(AND(phase=8),#REF!,IF(AND(phase=9),#REF!))))))))) -> 
G195: 0 | H195: =IF((phase=1),#REF!,IF(AND(phase=2),#REF!,IF(AND(phase=3),#REF!,IF(AND(phase=4),#REF!,IF(AND(phase=5),#REF!,IF(AND(phase=6),#REF!,IF(AND(phase=7),#REF!,IF(AND(phase=8),#REF!,IF(AND(phase=9),#REF!))))))))) -> 
G196: 0 | H196: =IF((phase=1),#REF!,IF(AND(phase=2),#REF!,IF(AND(phase=3),#REF!,IF(AND(phase=4),#REF!,IF(AND(phase=5),#REF!,IF(AND(phase=6),#REF!,IF(AND(phase=7),#REF!,IF(AND(phase=8),#REF!,IF(AND(phase=9),#REF!))))))))) -> 
G197: 0 | H197: =IF((phase=1),#REF!,IF(AND(phase=2),#REF!,IF(AND(phase=3),#REF!,IF(AND(phase=4),#REF!,IF(AND(phase=5),#REF!,IF(AND(phase=6),#REF!,IF(AND(phase=7),#REF!,IF(AND(phase=8),#REF!,IF(AND(phase=9),#REF!))))))))) -> 
G198: 0 | H198: =IF((phase=1),#REF!,IF(AND(phase=2),#REF!,IF(AND(phase=3),#REF!,IF(AND(phase=4),#REF!,IF(AND(phase=5),#REF!,IF(AND(phase=6),#REF!,IF(AND(phase=7),#REF!,IF(AND(phase=8),#REF!,IF(AND(phase=9),#REF!))))))))) -> 
G199: 0 | H199: =IF((phase=1),#REF!,IF(AND(phase=2),#REF!,IF(AND(phase=3),#REF!,IF(AND(phase=4),#REF!,IF(AND(phase=5),#REF!,IF(AND(phase=6),#REF!,IF(AND(phase=7),#REF!,IF(AND(phase=8),#REF!,IF(AND(phase=9),#REF!))))))))) -> 
G200: 0 | H200: =IF((phase=1),#REF!,IF(AND(phase=2),#REF!,IF(AND(phase=3),#REF!,IF(AND(phase=4),#REF!,IF(AND(phase=5),#REF!,IF(AND(phase=6),#REF!,IF(AND(phase=7),#REF!,IF(AND(phase=8),#REF!,IF(AND(phase=9),#REF!))))))))) -> 
G201: 0 | H201: =IF((phase=1),#REF!,IF(AND(phase=2),#REF!,IF(AND(phase=3),#REF!,IF(AND(phase=4),#REF!,IF(AND(phase=5),#REF!,IF(AND(phase=6),#REF!,IF(AND(phase=7),#REF!,IF(AND(phase=8),#REF!,IF(AND(phase=9),#REF!))))))))) -> 
G202: 0 | H202: =IF((phase=1),#REF!,IF(AND(phase=2),#REF!,IF(AND(phase=3),#REF!,IF(AND(phase=4),#REF!,IF(AND(phase=5),#REF!,IF(AND(phase=6),#REF!,IF(AND(phase=7),#REF!,IF(AND(phase=8),#REF!,IF(AND(phase=9),#REF!))))))))) -> 
... 25 more rows

Sheet Feuil2

Sheet Feuil3
